[Event "***Titled Tuesday 3|2 Blitz"]
[Site "Chess.com"]
[Date "2017.02.07"]
[Round "2"]
[White "Robin-Side"]
[Black "MFBerna"]
[Result "0-1"]
[WhiteElo "2387"]
[BlackElo "2250"]
[TimeControl "180+2"]
[EndTime "13:26:00 PST"]
[Termination "MFBerna won by resignation"]

1. d4 {[%clk 0:03:02]} 1... d5 {[%clk 0:03:00.6]} 2. Nc3 {[%clk 0:02:59.4]} 2...
Nf6 {[%clk 0:02:59.8]} 3. e4 {[%clk 0:03:00.1]} 3... dxe4 {[%clk 0:02:59.4]} 4.
f3 {[%clk 0:03:00.1]} 4... exf3 {[%clk 0:02:55.7]} 5. Nxf3 {[%clk 0:03:02]} 5...
g6 {[%clk 0:02:54.4]} 6. Bg5 {[%clk 0:03:02.2]} 6... Bg7 {[%clk 0:02:55]} 7. Qd2
{[%clk 0:03:03.5]} 7... O-O {[%clk 0:02:55.4]} 8. O-O-O {[%clk 0:03:04.5]} 8...
Bf5 {[%clk 0:02:55.9]} 9. h3 {[%clk 0:03:02.2]} 9... c5 {[%clk 0:02:53.8]} 10.
d5 {[%clk 0:02:48.5]} 10... Ne4 {[%clk 0:02:33.4]} 11. Nxe4 {[%clk 0:02:44.2]}
11... Bxe4 {[%clk 0:02:35.3]} 12. Be2 {[%clk 0:01:26]} 12... Qb6 {[%clk
0:02:29.9]} 13. c3 {[%clk 0:01:26.8]} 13... Qa5 {[%clk 0:02:22.6]} 14. a3 {[%clk
0:01:22.8]} 14... Rd8 {[%clk 0:02:18.7]} 15. c4 {[%clk 0:01:16.7]} 15... Qxd2+
{[%clk 0:02:17.8]} 16. Rxd2 {[%clk 0:01:18.6]} 16... f6 {[%clk 0:02:10.9]} 17.
Be3 {[%clk 0:01:13.3]} 17... Nd7 {[%clk 0:02:02.8]} 18. Re1 {[%clk 0:01:09.9]}
18... f5 {[%clk 0:02:02.6]} 19. Ng5 {[%clk 0:01:04.3]} 19... Nf6 {[%clk
0:02:00.3]} 20. Ne6 {[%clk 0:01:04.6]} 20... Rdc8 {[%clk 0:01:51.2]} 21. Nxc5
{[%clk 0:00:55.2]} 21... Bxg2 {[%clk 0:01:40]} 22. Nxb7 {[%clk 0:00:49.9]} 22...
Nxd5 {[%clk 0:01:09.2]} 23. Bd4 {[%clk 0:00:43.2]} 23... e5 {[%clk 0:00:57.8]}
24. Bg1 {[%clk 0:00:23.4]} 24... Bh6 {[%clk 0:00:57.5]} 25. Nd6 {[%clk
0:00:24.3]} 25... Rc6 {[%clk 0:00:50.4]} 26. Nb5 {[%clk 0:00:18.6]} 26... a6
{[%clk 0:00:47.9]} 27. Nc3 {[%clk 0:00:11.4]} 27... Nxc3 {[%clk 0:00:49.1]} 28.
bxc3 {[%clk 0:00:13.3]} 28... Rd8 {[%clk 0:00:50.7]} 29. Rd1 {[%clk 0:00:11.2]}
29... Rxd2 {[%clk 0:00:49.2]} 30. Rxd2 {[%clk 0:00:12.2]} 30... Rd6 {[%clk
0:00:48.2]} 31. Bd4 {[%clk 0:00:08.7]} 31... exd4 {[%clk 0:00:49.1]} 32. c5
{[%clk 0:00:07.8]} 32... Bxd2+ {[%clk 0:00:49]} 33. Kxd2 {[%clk 0:00:09.7]}
33... Rd5 {[%clk 0:00:48.1]} 34. cxd4 {[%clk 0:00:10.4]} 34... Rxd4+ {[%clk
0:00:49.2]} 35. Kc3 {[%clk 0:00:12.2]} 35... Re4 {[%clk 0:00:47.8]} 36. Bc4+
{[%clk 0:00:13.1]} 36... Kg7 {[%clk 0:00:46.9]} 37. Kb4 {[%clk 0:00:13.7]} 37...
Bf1 {[%clk 0:00:47.3]} 0-1

[Event "***Titled Tuesday 3|2 Blitz"]
[Site "Chess.com"]
[Date "2017.02.07"]
[Round "2"]
[White "martinique24"]
[Black "GrigorGrigorov"]
[Result "0-1"]
[WhiteElo "2311"]
[BlackElo "2482"]
[TimeControl "180+2"]
[EndTime "13:26:03 PST"]
[Termination "GrigorGrigorov won by checkmate"]

1. e4 {[%clk 0:03:02]} 1... g6 {[%clk 0:03:00.7]} 2. d4 {[%clk 0:03:02.5]} 2...
Bg7 {[%clk 0:02:59.7]} 3. Nc3 {[%clk 0:03:03.5]} 3... c6 {[%clk 0:03:00.5]} 4.
f4 {[%clk 0:03:01.6]} 4... d5 {[%clk 0:03:01.2]} 5. e5 {[%clk 0:03:02.8]} 5...
Nh6 {[%clk 0:03:01.6]} 6. Nf3 {[%clk 0:03:00.9]} 6... f6 {[%clk 0:03:01.8]} 7.
Be2 {[%clk 0:02:57.7]} 7... Bg4 {[%clk 0:03:02.4]} 8. Be3 {[%clk 0:02:55.6]}
8... O-O {[%clk 0:03:02.9]} 9. Qd2 {[%clk 0:02:53.2]} 9... e6 {[%clk 0:03:01.1]}
10. O-O-O {[%clk 0:02:50.6]} 10... Nf5 {[%clk 0:02:54.1]} 11. Kb1 {[%clk
0:02:38]} 11... Bxf3 {[%clk 0:02:30.1]} 12. Bxf3 {[%clk 0:02:35.2]} 12... Nd7
{[%clk 0:02:25.9]} 13. h4 {[%clk 0:02:23.1]} 13... Nb6 {[%clk 0:02:06.4]} 14.
Bf2 {[%clk 0:02:06.4]} 14... Nc4 {[%clk 0:02:05.6]} 15. Qd3 {[%clk 0:01:43]}
15... Qb6 {[%clk 0:01:42.1]} 16. b3 {[%clk 0:01:36.2]} 16... fxe5 {[%clk
0:01:39.4]} 17. Na4 {[%clk 0:01:17.5]} 17... Qb4 {[%clk 0:01:04.2]} 18. fxe5
{[%clk 0:01:07.1]} 18... Qa3 {[%clk 0:00:41.1]} 19. bxc4 {[%clk 0:00:52.1]}
19... Qxa4 {[%clk 0:00:41.3]} 20. cxd5 {[%clk 0:00:52.6]} 20... cxd5 {[%clk
0:00:41.9]} 21. h5 {[%clk 0:00:46.3]} 21... Rac8 {[%clk 0:00:42]} 22. hxg6
{[%clk 0:00:42.3]} 22... hxg6 {[%clk 0:00:41]} 23. g4 {[%clk 0:00:42.5]} 23...
Ne7 {[%clk 0:00:38.4]} 24. Be1 {[%clk 0:00:39]} 24... Rc4 {[%clk 0:00:21.3]} 25.
Be2 {[%clk 0:00:26.4]} 25... Rfc8 {[%clk 0:00:20.5]} 26. c3 {[%clk 0:00:27.1]}
26... R8c6 {[%clk 0:00:21.4]} 27. Qh3 {[%clk 0:00:13.3]} 27... Rb6+ {[%clk
0:00:21.1]} 28. Ka1 {[%clk 0:00:13.8]} 28... Qc2 {[%clk 0:00:20.6]} 29. Qh7+
{[%clk 0:00:13.6]} 29... Kf7 {[%clk 0:00:21.7]} 30. Rf1+ {[%clk 0:00:10.2]}
30... Ke8 {[%clk 0:00:20.8]} 31. Bxc4 {[%clk 0:00:05.8]} 31... Qb2# {[%clk
0:00:21.2]} 0-1

[Event "***Titled Tuesday 3|2 Blitz"]
[Site "Chess.com"]
[Date "2017.02.07"]
[Round "2"]
[White "macko06"]
[Black "RamonManon0g"]
[Result "0-1"]
[WhiteElo "2371"]
[BlackElo "2338"]
[TimeControl "180+2"]
[EndTime "13:26:07 PST"]
[Termination "RamonManon0g won by checkmate"]

1. d4 {[%clk 0:03:01.5]} 1... Nf6 {[%clk 0:03:00.8]} 2. Bf4 {[%clk 0:03:01.4]}
2... g6 {[%clk 0:03:00.1]} 3. Nc3 {[%clk 0:03:01.9]} 3... d5 {[%clk 0:03:01.2]}
4. e3 {[%clk 0:03:02.8]} 4... Bg7 {[%clk 0:03:02]} 5. h4 {[%clk 0:03:03.4]} 5...
h5 {[%clk 0:03:02.4]} 6. Nf3 {[%clk 0:03:03.1]} 6... O-O {[%clk 0:02:59.7]} 7.
Be2 {[%clk 0:03:04.4]} 7... c5 {[%clk 0:03:00.9]} 8. Nb5 {[%clk 0:03:03.2]} 8...
Na6 {[%clk 0:02:56.9]} 9. c3 {[%clk 0:03:04.2]} 9... Bg4 {[%clk 0:02:55]} 10. a4
{[%clk 0:03:03]} 10... c4 {[%clk 0:02:49.4]} 11. Ne5 {[%clk 0:02:57.4]} 11...
Bxe2 {[%clk 0:02:27.6]} 12. Qxe2 {[%clk 0:02:59.3]} 12... Ne4 {[%clk 0:02:26.6]}
13. g4 {[%clk 0:02:51.1]} 13... hxg4 {[%clk 0:02:22.7]} 14. Qxg4 {[%clk
0:02:51.5]} 14... Qc8 {[%clk 0:02:17]} 15. Qg2 {[%clk 0:02:48.5]} 15... Qf5
{[%clk 0:02:02.6]} 16. h5 {[%clk 0:02:24]} 16... g5 {[%clk 0:02:03.6]} 17. h6
{[%clk 0:02:11.7]} 17... Bf6 {[%clk 0:02:01.5]} 18. f3 {[%clk 0:02:01.8]} 18...
Nd6 {[%clk 0:01:51.7]} 19. Rh5 {[%clk 0:01:46.2]} 19... Kh8 {[%clk 0:01:40.6]}
20. Bxg5 {[%clk 0:01:38.3]} 20... Rg8 {[%clk 0:01:41.4]} 21. Nxd6 {[%clk
0:01:14.6]} 21... exd6 {[%clk 0:01:39.7]} 22. Nxf7+ {[%clk 0:01:09.8]} 22... Kh7
{[%clk 0:01:40.7]} 23. f4 {[%clk 0:00:56.5]} 23... Qg6 {[%clk 0:01:38.6]} 24.
Qxd5 {[%clk 0:00:34.1]} 24... Qxh5 {[%clk 0:01:34]} 25. Qxb7 {[%clk 0:00:32.1]}
25... Rab8 {[%clk 0:01:03.5]} 26. Qxa6 {[%clk 0:00:19.9]} 26... Qh1+ {[%clk
0:01:01.8]} 27. Kf2 {[%clk 0:00:20.8]} 27... Rxb2+ {[%clk 0:01:02.4]} 28. Kg3
{[%clk 0:00:21.1]} 28... Qg2+ {[%clk 0:00:54.4]} 29. Kh4 {[%clk 0:00:21.3]}
29... Qf3 {[%clk 0:00:21.6]} 30. Rh1 {[%clk 0:00:06.2]} 30... Rg2 {[%clk
0:00:21.6]} 31. Qc8 {[%clk 0:00:04.8]} 31... Rxc8 {[%clk 0:00:16.8]} 32. Bxf6
{[%clk 0:00:06.2]} 32... Qg4# {[%clk 0:00:17.3]} 0-1

[Event "***Titled Tuesday 3|2 Blitz"]
[Site "Chess.com"]
[Date "2017.02.07"]
[Round "2"]
[White "platy3"]
[Black "pKiLz5Rn9b"]
[Result "0-1"]
[WhiteElo "2587"]
[BlackElo "2583"]
[TimeControl "180+2"]
[EndTime "13:26:19 PST"]
[Termination "pKiLz5Rn9b won on time"]

1. e4 {[%clk 0:03:02]} 1... e6 {[%clk 0:03:00.7]} 2. d4 {[%clk 0:03:02.4]} 2...
d5 {[%clk 0:03:00.5]} 3. Nc3 {[%clk 0:03:03.2]} 3... dxe4 {[%clk 0:03:01]} 4.
Nxe4 {[%clk 0:03:03.8]} 4... Nd7 {[%clk 0:03:02.4]} 5. Nf3 {[%clk 0:02:49.7]}
5... Ngf6 {[%clk 0:03:03.5]} 6. Nxf6+ {[%clk 0:02:47.3]} 6... Nxf6 {[%clk
0:03:05.4]} 7. Be3 {[%clk 0:02:48.6]} 7... Nd5 {[%clk 0:03:04.3]} 8. Bg5 {[%clk
0:02:43.1]} 8... Be7 {[%clk 0:03:03.8]} 9. Qd2 {[%clk 0:02:34.9]} 9... O-O
{[%clk 0:03:01]} 10. O-O-O {[%clk 0:02:34.3]} 10... Bxg5 {[%clk 0:02:59.3]} 11.
Nxg5 {[%clk 0:02:34.7]} 11... h6 {[%clk 0:02:59.9]} 12. Ne4 {[%clk 0:02:34.8]}
12... Qe7 {[%clk 0:02:54.8]} 13. g3 {[%clk 0:02:32.1]} 13... b6 {[%clk
0:02:55.9]} 14. Bg2 {[%clk 0:02:32.1]} 14... Rb8 {[%clk 0:02:53.9]} 15. Rhe1
{[%clk 0:01:51.6]} 15... Bb7 {[%clk 0:02:54.2]} 16. f4 {[%clk 0:01:40.8]} 16...
Rfd8 {[%clk 0:02:48.4]} 17. Qf2 {[%clk 0:01:34]} 17... Qd7 {[%clk 0:02:14.3]}
18. Kb1 {[%clk 0:01:28.4]} 18... Ne7 {[%clk 0:02:09.9]} 19. Nc3 {[%clk
0:01:11.9]} 19... Bxg2 {[%clk 0:02:09.4]} 20. Qxg2 {[%clk 0:01:13.8]} 20... c6
{[%clk 0:02:06]} 21. g4 {[%clk 0:01:13.3]} 21... Qd6 {[%clk 0:02:03.9]} 22. Qf3
{[%clk 0:01:09.2]} 22... Ng6 {[%clk 0:01:56.3]} 23. f5 {[%clk 0:00:59.1]} 23...
Qf4 {[%clk 0:01:43.5]} 24. Qh3 {[%clk 0:00:51.8]} 24... Nf8 {[%clk 0:01:39.1]}
25. Re4 {[%clk 0:00:49.7]} 25... Qg5 {[%clk 0:01:36.7]} 26. Rf1 {[%clk
0:00:50.6]} 26... Re8 {[%clk 0:01:31.7]} 27. f6 {[%clk 0:00:44]} 27... gxf6
{[%clk 0:01:17.9]} 28. Ref4 {[%clk 0:00:44.9]} 28... Nh7 {[%clk 0:01:03.4]} 29.
Ne4 {[%clk 0:00:45.1]} 29... Qg7 {[%clk 0:01:02]} 30. Nxf6+ {[%clk 0:00:37.4]}
30... Nxf6 {[%clk 0:01:03.3]} 31. Rxf6 {[%clk 0:00:39.3]} 31... Rbd8 {[%clk
0:01:03.2]} 32. Qf3 {[%clk 0:00:25.6]} 32... Re7 {[%clk 0:01:01.7]} 33. c3
{[%clk 0:00:25.8]} 33... c5 {[%clk 0:01:01.8]} 34. Qf4 {[%clk 0:00:20.7]} 34...
cxd4 {[%clk 0:01:01.3]} 35. cxd4 {[%clk 0:00:22.6]} 35... Red7 {[%clk
0:00:58.8]} 36. d5 {[%clk 0:00:15.3]} 36... Qh7+ {[%clk 0:00:50.9]} 37. Ka1
{[%clk 0:00:05.3]} 37... Rxd5 {[%clk 0:00:52.3]} 38. Qf3 {[%clk 0:00:03.7]}
38... Qc2 {[%clk 0:00:51.8]} 39. a3 {[%clk 0:00:02.4]} 39... Rd1+ {[%clk
0:00:52.5]} 40. Ka2 {[%clk 0:00:03.5]} 40... Qb1+ {[%clk 0:00:49.7]} 0-1

[Event "***Titled Tuesday 3|2 Blitz"]
[Site "Chess.com"]
[Date "2017.02.07"]
[Round "2"]
[White "JSMastropiero"]
[Black "Carolina-moon"]
[Result "1-0"]
[WhiteElo "2159"]
[BlackElo "2040"]
[TimeControl "180+2"]
[EndTime "13:26:20 PST"]
[Termination "JSMastropiero won by resignation"]

1. d4 {[%clk 0:02:58]} 1... f5 {[%clk 0:02:59.8]} 2. g3 {[%clk 0:02:55.9]} 2...
Nf6 {[%clk 0:02:59.9]} 3. Bg2 {[%clk 0:02:57]} 3... g6 {[%clk 0:03:01.5]} 4. Nf3
{[%clk 0:02:53.7]} 4... Bg7 {[%clk 0:03:02.8]} 5. O-O {[%clk 0:02:54.8]} 5...
O-O {[%clk 0:03:04.3]} 6. c4 {[%clk 0:02:55.8]} 6... d6 {[%clk 0:03:05.8]} 7.
Nc3 {[%clk 0:02:57.1]} 7... c6 {[%clk 0:03:07.1]} 8. Rb1 {[%clk 0:02:41.8]} 8...
Qe8 {[%clk 0:02:40.5]} 9. d5 {[%clk 0:02:40]} 9... c5 {[%clk 0:02:31.3]} 10. a3
{[%clk 0:02:38.4]} 10... Ne4 {[%clk 0:02:19.8]} 11. Nxe4 {[%clk 0:02:34.9]}
11... fxe4 {[%clk 0:02:20.6]} 12. Ng5 {[%clk 0:02:30.2]} 12... Bf5 {[%clk
0:02:06.3]} 13. Nxe4 {[%clk 0:02:28.5]} 13... Nd7 {[%clk 0:02:05.1]} 14. b4
{[%clk 0:02:22.8]} 14... b6 {[%clk 0:01:58.2]} 15. Bb2 {[%clk 0:02:21.3]} 15...
Ne5 {[%clk 0:01:44.5]} 16. Qb3 {[%clk 0:02:17.5]} 16... Rc8 {[%clk 0:01:42]} 17.
Rbc1 {[%clk 0:02:16.9]} 17... a5 {[%clk 0:01:35.4]} 18. b5 {[%clk 0:02:08.5]}
18... h6 {[%clk 0:01:35.8]} 19. h3 {[%clk 0:02:03]} 19... Qf7 {[%clk 0:01:33.8]}
20. f4 {[%clk 0:01:57.6]} 20... Nd7 {[%clk 0:01:27.1]} 21. Nf2 {[%clk
0:01:54.8]} 21... a4 {[%clk 0:01:10.9]} 22. Qa2 {[%clk 0:01:51.2]} 22... g5
{[%clk 0:01:01.8]} 23. fxg5 {[%clk 0:01:36.4]} 23... hxg5 {[%clk 0:01:02.1]} 24.
Ng4 {[%clk 0:01:28.9]} 24... Qg6 {[%clk 0:00:59.1]} 25. Bxg7 {[%clk 0:01:28.1]}
25... Qxg7 {[%clk 0:00:57.3]} 26. Bf3 {[%clk 0:01:17.7]} 26... Ne5 {[%clk
0:00:48.4]} 27. Nxe5 {[%clk 0:01:15.1]} 27... Qxe5 {[%clk 0:00:49.2]} 28. Kg2
{[%clk 0:01:12.5]} 28... Kg7 {[%clk 0:00:43.1]} 29. Qd2 {[%clk 0:01:10.2]} 29...
Rh8 {[%clk 0:00:35.5]} 30. Qxg5+ {[%clk 0:01:08.4]} 30... Kf7 {[%clk 0:00:27.5]}
31. Qxf5+ {[%clk 0:00:53.4]} 31... Qxf5 {[%clk 0:00:27.9]} 32. Bg4 {[%clk
0:00:55]} 32... Qxf1+ {[%clk 0:00:17.6]} 33. Rxf1+ {[%clk 0:00:55.4]} 33... Kg6
{[%clk 0:00:17.2]} 34. Bxc8 {[%clk 0:00:57.3]} 34... Rxc8 {[%clk 0:00:18.4]} 35.
Rf4 {[%clk 0:00:54.7]} 35... Re8 {[%clk 0:00:16.6]} 36. Re4 {[%clk 0:00:45.5]}
36... Kf5 {[%clk 0:00:13.7]} 37. Kf3 {[%clk 0:00:44.5]} 37... e5 {[%clk
0:00:10.6]} 38. dxe6 {[%clk 0:00:44.2]} 38... Re7 {[%clk 0:00:10.6]} 39. h4
{[%clk 0:00:43.1]} 39... Kf6 {[%clk 0:00:09.4]} 40. g4 {[%clk 0:00:42.9]} 1-0

[Event "***Titled Tuesday 3|2 Blitz"]
[Site "Chess.com"]
[Date "2017.02.07"]
[Round "2"]
[White "Boryboy"]
[Black "dcremisi"]
[Result "1/2-1/2"]
[WhiteElo "2393"]
[BlackElo "2252"]
[TimeControl "180+2"]
[EndTime "13:26:24 PST"]
[Termination "Game drawn - insufficient material"]

1. d4 {[%clk 0:03:02]} 1... e6 {[%clk 0:02:58.9]} 2. Nf3 {[%clk 0:03:00.1]} 2...
Nf6 {[%clk 0:02:59.1]} 3. g3 {[%clk 0:03:01]} 3... d5 {[%clk 0:02:59.5]} 4. Bg2
{[%clk 0:03:01.5]} 4... Be7 {[%clk 0:02:59.6]} 5. O-O {[%clk 0:03:01.8]} 5...
O-O {[%clk 0:03:01.2]} 6. c4 {[%clk 0:02:56.2]} 6... c6 {[%clk 0:03:00]} 7. Qc2
{[%clk 0:02:56.4]} 7... b6 {[%clk 0:03:00.4]} 8. Nbd2 {[%clk 0:02:57.5]} 8...
Bb7 {[%clk 0:03:01.6]} 9. e4 {[%clk 0:02:58.4]} 9... dxe4 {[%clk 0:03:00.4]} 10.
Nxe4 {[%clk 0:02:59.4]} 10... Nxe4 {[%clk 0:03:01.5]} 11. Qxe4 {[%clk
0:03:01.3]} 11... Nd7 {[%clk 0:03:02.3]} 12. Rd1 {[%clk 0:03:01.7]} 12... Nf6
{[%clk 0:03:03.2]} 13. Qc2 {[%clk 0:03:02.3]} 13... Qc7 {[%clk 0:03:04.2]} 14.
Bf4 {[%clk 0:02:59.5]} 14... Bd6 {[%clk 0:03:04.9]} 15. Bxd6 {[%clk 0:03:00.4]}
15... Qxd6 {[%clk 0:03:05.7]} 16. c5 {[%clk 0:03:02]} 16... Qc7 {[%clk
0:03:06.2]} 17. b4 {[%clk 0:03:01.7]} 17... a5 {[%clk 0:03:01.7]} 18. a3 {[%clk
0:03:01.3]} 18... axb4 {[%clk 0:03:02.4]} 19. axb4 {[%clk 0:03:03.2]} 19... bxc5
{[%clk 0:03:03.1]} 20. dxc5 {[%clk 0:03:02]} 20... Nd5 {[%clk 0:03:03.4]} 21.
Qb2 {[%clk 0:03:01.3]} 21... Rxa1 {[%clk 0:03:03.1]} 22. Rxa1 {[%clk 0:03:03.2]}
22... Ra8 {[%clk 0:03:03.5]} 23. Rxa8+ {[%clk 0:03:01.3]} 23... Bxa8 {[%clk
0:03:05.4]} 24. Ne5 {[%clk 0:03:01.6]} 24... Nxb4 {[%clk 0:02:47.9]} 25. Nxf7
{[%clk 0:03:02.6]} 25... Nd3 {[%clk 0:02:39.8]} 26. Qa3 {[%clk 0:02:59.1]} 26...
Qxf7 {[%clk 0:02:21.5]} 27. Qxd3 {[%clk 0:02:58.5]} 27... Qe7 {[%clk 0:02:20.1]}
28. Qe3 {[%clk 0:02:42.7]} 28... Bb7 {[%clk 0:02:19.6]} 29. Qe5 {[%clk
0:02:42.6]} 29... Qd7 {[%clk 0:02:19]} 30. Bf3 {[%clk 0:02:41.9]} 30... Bc8
{[%clk 0:02:17.7]} 31. h4 {[%clk 0:02:42.3]} 31... Ba6 {[%clk 0:02:10.8]} 32.
Qd6 {[%clk 0:02:35.7]} 32... Qxd6 {[%clk 0:01:49.3]} 33. cxd6 {[%clk 0:02:37.6]}
33... Kf7 {[%clk 0:01:50.6]} 34. Bxc6 {[%clk 0:02:36.1]} 34... e5 {[%clk
0:01:51.6]} 35. Bd5+ {[%clk 0:02:37.1]} 35... Ke8 {[%clk 0:01:52.2]} 36. Be6
{[%clk 0:02:38.4]} 36... Bb5 {[%clk 0:01:53.3]} 37. f4 {[%clk 0:02:36.3]} 37...
exf4 {[%clk 0:01:52.8]} 38. gxf4 {[%clk 0:02:38.2]} 38... Bd7 {[%clk 0:01:41.4]}
39. f5 {[%clk 0:02:25.4]} 39... g6 {[%clk 0:01:40.8]} 40. Bg8 {[%clk 0:01:36.4]}
40... Bxf5 {[%clk 0:01:39.2]} 41. Bxh7 {[%clk 0:01:31.8]} 41... Kd7 {[%clk
0:01:39.7]} 42. Kf2 {[%clk 0:01:33.2]} 42... Kxd6 {[%clk 0:01:40.4]} 43. Kg3
{[%clk 0:01:34.8]} 43... Ke5 {[%clk 0:01:41.5]} 44. Bg8 {[%clk 0:01:35.3]} 44...
Kf6 {[%clk 0:01:42.4]} 45. Kf4 {[%clk 0:01:36.4]} 45... Bd7 {[%clk 0:01:38.6]}
46. Bd5 {[%clk 0:01:36.7]} 46... Be8 {[%clk 0:01:39.4]} 47. Be4 {[%clk 0:01:38]}
47... Bf7 {[%clk 0:01:40]} 48. Bd3 {[%clk 0:01:39.4]} 48... Be6 {[%clk
0:01:40.7]} 49. Be2 {[%clk 0:01:40.6]} 49... Bg8 {[%clk 0:01:40.8]} 50. Bf3
{[%clk 0:01:41.8]} 50... Be6 {[%clk 0:01:40.6]} 51. Bc6 {[%clk 0:01:42.7]} 51...
Bf7 {[%clk 0:01:41.6]} 52. Bb7 {[%clk 0:01:43.7]} 52... Be6 {[%clk 0:01:42.7]}
53. Ba6 {[%clk 0:01:44.9]} 53... Bf7 {[%clk 0:01:42]} 54. Bd3 {[%clk 0:01:45.4]}
54... Be8 {[%clk 0:01:42.1]} 55. Bc2 {[%clk 0:01:46.8]} 55... Bf7 {[%clk
0:01:42.7]} 56. Bd1 {[%clk 0:01:47.6]} 56... Be6 {[%clk 0:01:44]} 57. Ke4 {[%clk
0:01:48.9]} 57... Bd7 {[%clk 0:01:43.7]} 58. Kd5 {[%clk 0:01:50.1]} 58... Bh3
{[%clk 0:01:39.7]} 59. Ke4 {[%clk 0:01:50.9]} 59... Bf5+ {[%clk 0:01:40.6]} 60.
Kf4 {[%clk 0:01:52.3]} 60... Be6 {[%clk 0:01:41.6]} 61. Bc2 {[%clk 0:01:53.8]}
61... Bf7 {[%clk 0:01:42.6]} 62. Kg3 {[%clk 0:01:54.7]} 62... Be6 {[%clk
0:01:42.8]} 63. Bb1 {[%clk 0:01:55.8]} 63... Bd5 {[%clk 0:01:42.8]} 64. Kg4
{[%clk 0:01:56.7]} 64... Be6+ {[%clk 0:01:42.9]} 65. Kf3 {[%clk 0:01:58]} 65...
Bd7 {[%clk 0:01:42.2]} 66. Kf4 {[%clk 0:01:59.4]} 66... Be6 {[%clk 0:01:43.2]}
67. h5 {[%clk 0:02:00.6]} 67... gxh5 {[%clk 0:01:42.1]} 68. Kg3 {[%clk 0:02:02]}
68... Kg5 {[%clk 0:01:42.8]} 69. Kh2 {[%clk 0:02:03.4]} 69... h4 {[%clk
0:01:44.1]} 70. Be4 {[%clk 0:02:04.6]} 70... Kf4 {[%clk 0:01:44.6]} 71. Bh1
{[%clk 0:02:05.5]} 71... Bg4 {[%clk 0:01:46]} 72. Bd5 {[%clk 0:02:06.6]} 72...
Kg5 {[%clk 0:01:47.1]} 73. Bg2 {[%clk 0:02:07.9]} 73... Kf4 {[%clk 0:01:47.6]}
74. Bh1 {[%clk 0:02:09.4]} 74... Ke3 {[%clk 0:01:48.5]} 75. Bg2 {[%clk
0:02:10.8]} 75... Kf4 {[%clk 0:01:49.9]} 76. Bh1 {[%clk 0:02:12.3]} 76... Kg5
{[%clk 0:01:50.7]} 77. Bg2 {[%clk 0:02:13.7]} 77... Kf4 {[%clk 0:01:51.8]} 78.
Bh1 {[%clk 0:02:15.2]} 78... Bf5 {[%clk 0:01:49.6]} 79. Bg2 {[%clk 0:02:16.4]}
79... Ke3 {[%clk 0:01:50.3]} 80. Bh1 {[%clk 0:02:16.2]} 80... Kf2 {[%clk
0:01:51.2]} 81. Bg2 {[%clk 0:02:15.2]} 81... Bh3 {[%clk 0:01:50.9]} 82. Kxh3
{[%clk 0:02:14.6]} 82... Kg1 {[%clk 0:01:51.1]} 83. Kxh4 {[%clk 0:02:15.8]}
1/2-1/2

[Event "***Titled Tuesday 3|2 Blitz"]
[Site "Chess.com"]
[Date "2017.02.07"]
[Round "2"]
[White "EmeseBalogh"]
[Black "HouseOfDurin"]
[Result "0-1"]
[WhiteElo "1995"]
[BlackElo "1894"]
[TimeControl "180+2"]
[EndTime "13:26:24 PST"]
[Termination "HouseOfDurin won by checkmate"]

1. e4 {[%clk 0:03:02]} 1... c5 {[%clk 0:03:00.5]} 2. Nc3 {[%clk 0:02:59.7]} 2...
Nc6 {[%clk 0:03:01.5]} 3. d3 {[%clk 0:02:59.8]} 3... g6 {[%clk 0:03:01.2]} 4.
Be3 {[%clk 0:03:00]} 4... d6 {[%clk 0:03:01.6]} 5. d4 {[%clk 0:03:00.5]} 5...
cxd4 {[%clk 0:03:01.4]} 6. Bxd4 {[%clk 0:03:01.6]} 6... Nxd4 {[%clk 0:03:01.8]}
7. Qxd4 {[%clk 0:03:02.6]} 7... Nf6 {[%clk 0:03:02.1]} 8. e5 {[%clk 0:02:59.6]}
8... dxe5 {[%clk 0:02:54.3]} 9. Bb5+ {[%clk 0:02:59.8]} 9... Bd7 {[%clk
0:02:26.9]} 10. Qxe5 {[%clk 0:02:59.3]} 10... Bg7 {[%clk 0:01:42.7]} 11. O-O-O
{[%clk 0:02:58.3]} 11... O-O {[%clk 0:01:39.9]} 12. Bxd7 {[%clk 0:02:58.8]}
12... Nxd7 {[%clk 0:01:40.1]} 13. Qb5 {[%clk 0:02:59.4]} 13... Qb6 {[%clk
0:00:43]} 14. Rxd7 {[%clk 0:02:43.2]} 14... Qxf2 {[%clk 0:00:22.4]} 15. Nge2
{[%clk 0:02:39.4]} 15... Qxg2 {[%clk 0:00:15.2]} 16. Qxb7 {[%clk 0:02:38.3]}
16... Bh6+ {[%clk 0:00:16.1]} 17. Kb1 {[%clk 0:02:38.4]} 17... Qf2 {[%clk
0:00:16]} 18. Qe4 {[%clk 0:02:20.1]} 18... Rab8 {[%clk 0:00:16.7]} 19. Rxe7
{[%clk 0:02:13.7]} 19... Qb6 {[%clk 0:00:13.8]} 20. b3 {[%clk 0:02:13.4]} 20...
Rfc8 {[%clk 0:00:14.1]} 21. Nd5 {[%clk 0:02:07.9]} 21... Qc5 {[%clk 0:00:08.3]}
22. c4 {[%clk 0:02:06.7]} 22... Bg7 {[%clk 0:00:08.7]} 23. Nec3 {[%clk
0:01:59.1]} 23... Qa3 {[%clk 0:00:07]} 24. Qc2 {[%clk 0:01:33.2]} 24... a5
{[%clk 0:00:07.7]} 25. Rf1 {[%clk 0:01:23.2]} 25... Rf8 {[%clk 0:00:08.3]} 26.
Nf6+ {[%clk 0:01:21.8]} 26... Kh8 {[%clk 0:00:08.7]} 27. Qb2 {[%clk 0:01:19]}
27... Qxe7 {[%clk 0:00:08.6]} 28. Ncd5 {[%clk 0:01:15.3]} 28... Qe6 {[%clk
0:00:09]} 29. Qf2 {[%clk 0:01:12.7]} 29... a4 {[%clk 0:00:09.8]} 30. Qh4 {[%clk
0:01:12.3]} 30... h5 {[%clk 0:00:10.1]} 31. Nxh5 {[%clk 0:01:09.4]} 31... gxh5
{[%clk 0:00:10]} 32. Qxh5+ {[%clk 0:01:10.2]} 32... Qh6 {[%clk 0:00:11.7]} 33.
Qf3 {[%clk 0:00:57.5]} 33... axb3 {[%clk 0:00:12.1]} 34. axb3 {[%clk 0:00:59.4]}
34... Qg6+ {[%clk 0:00:12.2]} 35. Kc1 {[%clk 0:00:57.3]} 35... Bh6+ {[%clk
0:00:10.8]} 36. Nf4 {[%clk 0:00:55.4]} 36... Qg5 {[%clk 0:00:11.5]} 37. Qh3
{[%clk 0:00:55.3]} 37... Rbe8 {[%clk 0:00:10.8]} 38. Rf3 {[%clk 0:00:56.3]}
38... Re4 {[%clk 0:00:10.6]} 39. Kc2 {[%clk 0:00:52.7]} 39... Rxf4 {[%clk
0:00:11.6]} 40. Rxf4 {[%clk 0:00:53.3]} 40... Qxf4 {[%clk 0:00:13.5]} 41. Qd3
{[%clk 0:00:54.8]} 41... Qxh2+ {[%clk 0:00:11.5]} 42. Kc3 {[%clk 0:00:54.5]}
42... Qe5+ {[%clk 0:00:12.9]} 43. Kb4 {[%clk 0:00:55.3]} 43... Rb8+ {[%clk
0:00:13.8]} 44. Ka4 {[%clk 0:00:56.2]} 44... Bg7 {[%clk 0:00:13.1]} 45. Qh3+
{[%clk 0:00:56.1]} 45... Kg8 {[%clk 0:00:14.1]} 46. Qd7 {[%clk 0:00:56.3]} 46...
Qa1# {[%clk 0:00:15.4]} 0-1